Cogmind - Beta 12 @@@ ROGUE MODE // 2023.03.11 @ 19:54:56 Player: PhazeDK Result: Destroyed by G-73 Enforcer with Phase Gun Performance ------------- Evolutions (8) 4000 Regions Visited (19) 3800 Robots Destroyed (23) 115 Value Destroyed (376) 376 Prototype IDs (8) 160 Alien Tech Used (1) 200 Bonus (1531) 1531 TOTAL SCORE: 10182 Bonus ------- High Alert Combat Kills 6 Follower Combat Kills 25 Entered DSFs 1000 Scanned by Researcher 500 Cogmind --------- Core Integrity 0/1450 Matter 152/300 Energy 99/100 System Corruption 0% Temperature Cool (0) Movement Core (50) Location -2/Testing Parts ------- > --- POWER (2) -------- (None) > --- PROPULSION (9) --- (None) > --- UTILITY (10) ----- Machine Analyzer Terrain Scan Processor Experimental Core Analyzer > --- WEAPON (2) ------- (None) > --- INVENTORY (5) ---- Light Quantum Reactor Light Quantum Reactor Advanced Coolant Injector Advanced Shield Generator Enhanced Force Lance Peak State ------------ > --- POWER ------------ Light Quantum Reactor > --- PROPULSION ------- Advanced Medium Treads Wheel Impulse Thruster Array Impulse Thruster Array Experimental Q-thruster > --- UTILITY ---------- Machine Analyzer Enhanced Optical Array Terrain Scan Processor Layered Light Armor Plating Improved Thermal Shield > --- WEAPON ----------- Enhanced Force Lance > --- INVENTORY -------- Machine Analyzer Advanced ECM Suite Advanced Shield Generator Force Lance [Rating: 89] Favorites ----------- Power Light Fission Core Engine Light Angular Momentum Engine Power Core Light Fission Core Reactor Light Quantum Reactor Propulsion Improved VTOL Module Treads Light Treads Leg VSS Leg Wheel Wheel Flight Unit Improved VTOL Module Utility Hacking Suite Device Improved Heat Sink Processor Machine Analyzer Hackware Hacking Suite Protection Experimental Propulsion Shielding Weapon Hammer Energy Gun EM Pulse Gun Ballistic Gun Light Assault Rifle Launcher Missile Launcher Impact Weapon Hammer Slashing Weapon Plasma Sword Piercing Weapon Force Lance Build | -11 -10 -10 -9 -8 -7 -7 -6 -6 -6 -6 -5 -5 -5 -4 -4 -4 -3 -2 -2 ------- Run | Jun Mat Min Mat Mat Fac DSF Fac Low Low Zio Pro Fac DSF Fac Upp Upp Res Res Tes Slots Evolved 16 | . . . 2 2 2 . 2 . . . . 2 . 2 . . 2 2 . Power 1 | . . . . . . . . . . . . 1 . . . . . . . Propulsion 7 | . . . 2 1 . . 1 . . . . 1 . 1 . . 1 . . Utility 8 | . . . . 1 2 . 1 . . . . . . 1 . . 1 2 . Weapon . | . . . . . . . . . . . . . . . . . . . . Parts Attached 95 | 7 3 . . 11 2 1 21 . . . 1 . 13 3 . . 13 15 5 Power 13 | . . . . 2 . . 2 . . . . . 2 1 . . 2 3 1 Engine 6 | . . . . 1 . . . . . . . . 2 1 . . 2 . . Core 3 | . . . . 1 . . 2 . . . . . . . . . . . . Reactor 4 | . . . . . . . . . . . . . . . . . . 3 1 Propulsion 29 | 3 1 . . 5 . . 4 . . . . . 6 1 . . 3 4 2 Treads 4 | 2 . . . . . . . . . . . . . . . . . 2 . Leg 2 | . . . . 2 . . . . . . . . . . . . . . . Wheel 2 | 1 . . . . . . . . . . . . . . . . . 1 . Hover . | . . . . . . . . . . . . . . . . . . . . Flight 21 | . 1 . . 3 . . 4 . . . . . 6 1 . . 3 1 2 Utility 35 | 1 1 . . 3 2 . 11 . . . 1 . 3 1 . . 6 5 1 Device 16 | 1 1 . . 2 . . 6 . . . . . 2 1 . . 1 2 . Storage . | . . . . . . . . . . . . . . . . . . . . Processor 6 | . . . . . . . 1 . . . 1 . . . . . 1 3 . Hackware 3 | . . . . 1 . . . . . . . . . . . . 1 . 1 Protection 10 | . . . . . 2 . 4 . . . . . 1 . . . 3 . . Artifact . | . . . . . . . . . . . . . . . . . . . . Weapon 18 | 3 1 . . 1 . 1 4 . . . . . 2 . . . 2 3 1 Energy Gun 1 | 1 . . . . . . . . . . . . . . . . . . . Energy Cannon . | . . . . . . . . . . . . . . . . . . . . Ballistic Gun 2 | 2 . . . . . . . . . . . . . . . . . . . Ballistic Cannon . | . . . . . . . . . . . . . . . . . . . . Launcher 5 | . . . . 1 . . 3 . . . . . 1 . . . . . . Special Weapon . | . . . . . . . . . . . . . . . . . . . . Impact Weapon 4 | . 1 . . . . 1 1 . . . . . . . . . 1 . . Slashing Weapon 1 | . . . . . . . . . . . . . . . . . . 1 . Piercing Weapon 5 | . . . . . . . . . . . . . 1 . . . 1 2 1 Special Melee Weapon . | . . . . . . . . . . . . . . . . . . . . Unidentified Prototypes 9 | . . . . 1 . . 1 . . . . . . . 1 . 1 5 . Parts Lost 50 | . . . 1 . . 1 7 . . . . . 10 2 5 . 10 9 5 Power 5 | . . . . . . 1 1 . . . . . 1 . 1 . 1 . . Propulsion 22 | . . . . . . . 2 . . . . . 6 2 3 . 2 4 3 Utility 17 | . . . . . . . 3 . . . . . 2 . 1 . 6 4 1 Weapon 6 | . . . 1 . . . 1 . . . . . 1 . . . 1 1 1 Highest Loss Streak 10 | . . . 1 . . 1 5 . . . . . 10 2 5 . 5 6 5 To Critical Strikes . | . . . . . . . . . . . . . . . . . . . . Average Slot Usage (%) 65 | . 70 71 54 79 92 87 81 93 93 93 93 82 75 78 54 31 33 33 28 Engine 1 | . . . . 1 7 4 . . . . . . 3 9 3 . . . . Core 2 | . . . . 4 . . 5 6 6 6 6 5 1 . . . . . . Treads 3 | . 14 14 11 5 . . . . . . . . . . . . . 1 . Leg 2 | . . . . 13 7 7 5 . . . . . . . . . . . . Flight 19 | . 13 14 11 22 30 30 27 40 40 40 40 35 29 28 15 5 4 7 7 Device 10 | . 13 14 11 18 15 15 16 13 13 13 9 5 5 13 11 5 . 2 . Processor 5 | . . . . . . . . 6 6 6 10 11 11 10 10 10 11 11 13 Hackware 3 | . . . . 4 7 7 6 6 6 6 6 5 5 5 5 5 5 . 3 Protection 4 | . . . . . 15 15 9 13 13 13 13 11 8 5 3 . 3 2 . Ballistic Gun 2 | . 14 14 10 . . . . . . . . . . . . . . . . Impact Weapon 5 | . 13 14 11 9 7 5 6 6 6 6 6 5 2 . . . 3 . . Piercing Weapon 1 | . . . . . . . . . . . . . 2 5 5 5 . 2 2 Naked Turns . | . . . . . . . . . . . . . . . . . . . . Heaviest Build 40 | 3 4 4 4 9 16 16 21 15 15 15 15 14 32 33 24 7 19 40 23 Greatest Support 48 | 20 4 4 4 18 18 18 28 28 28 28 28 28 44 37 26 7 48 38 21 Greatest Overweight (x) 2 | . . . . . . . 1 . . . . . 1 . 1 . 1 2 1 Average Overweight (x) . | . . . . . . . . . . . . . . . . . . . . Largest Inventory Capacity 5 | 5 5 5 5 5 5 5 5 5 5 5 5 5 5 5 5 5 5 5 5 Average Capacity 5 | 5 5 5 5 5 5 5 5 5 5 5 5 5 5 5 5 5 5 5 5 Most Carried 5 | 2 4 4 5 5 4 3 5 2 3 3 5 5 5 4 5 5 5 5 5 Average Carried 3 | . 3 4 3 4 3 2 2 2 2 3 3 4 4 3 4 5 4 4 4 Final Capacity 5 | 5 5 5 5 5 5 5 5 5 5 5 5 5 5 5 5 5 5 5 5 Final Carried 5 | 2 4 4 4 5 3 2 2 2 3 3 4 5 5 4 5 5 2 4 5 Class Distribution -------------------- 64% | Mutant 30% | Sprinter 4% | Hacker-Mutant Dominant Class ---------------- Mutant | -10/Materials Mutant | -10/Mines Mutant | -9/Materials Mutant | -8/Materials Mutant | -7/Factory Mutant | -7/DSF Mutant | -6/Factory Sprinter | -6/Lower Caves Sprinter | -6/Lower Caves Sprinter | -6/Zion Sprinter | -5/Proximity Caves Sprinter | -5/Factory Sprinter | -5/DSF Sprinter | -4/Factory Sprinter | -4/Upper Caves Mutant | -4/Upper Caves Hacker-Mutant | -3/Research Mutant | -2/Research Sprinter | -2/Testing Resources | -11 -10 -10 -9 -8 -7 -7 -6 -6 -6 -6 -5 -5 -5 -4 -4 -4 -3 -2 -2 ----------- Run | Jun Mat Min Mat Mat Fac DSF Fac Low Low Zio Pro Fac DSF Fac Upp Upp Res Res Tes Matter Collected 951 | 294 30 . . 107 . . . 37 212 . . 49 20 . 80 . . 122 . Remotely . | . . . . . . . . . . . . . . . . . . . . Salvage Created 872 | 106 51 . . 152 . . 81 58 134 . . . 127 . 27 . . 136 . Parts 36 | 4 1 . . 8 . . 6 . . . . . 5 . 1 . . 11 . Haulers Intercepted 4 | . 1 . . 3 . . . . . . . . . . . . . . . Recyclers Shooed . | . . . . . . . . . . . . . . . . . . . . Parts Field Recycled . | . . . . . . . . . . . . . . . . . . . . Retrieved Matter . | . . . . . . . . . . . . . . . . . . . . Parts Self-Destructed 1 | . . . . . . . . . . . . . . . 1 . . . . Prevented . | . . . . . . . . . . . . . . . . . . . . Kills | -11 -10 -10 -9 -8 -7 -7 -6 -6 -6 -6 -5 -5 -5 -4 -4 -4 -3 -2 -2 ------- Run | Jun Mat Min Mat Mat Fac DSF Fac Low Low Zio Pro Fac DSF Fac Upp Upp Res Res Tes Combat Hostiles Destroyed 11 | . . . . 3 . . 6 . . . . . 1 . 1 . . . . Melee 1 | . . . . . . . . . . . . . . . 1 . . . . AOE 10 | . . . . 3 . . 6 . . . . . 1 . . . . . . Classes Destroyed 9 | 2 1 . . 2 . . . . 1 . . . 1 . . . . 2 . Worker 3 | . . . . 1 . . . . . . . . . . . . . 2 . Builder 2 | . . . . . . . . . . . . . . . . . . 2 . Tunneler 1 | 1 . . . . . . . . . . . . . . . . . . . Hauler 4 | . 1 . . 3 . . . . . . . . . . . . . . . Recycler 1 | 1 . . . . . . . . . . . . . . . . . . . Mechanic 1 | . . . . . . . . . . . . . . . . . . 1 . Swarmer 10 | . . . . 3 . . 6 . . . . . . . 1 . . . . Cutter 1 | . . . . . . . . . . . . . 1 . . . . . . Decomposer 4 | . . . . . . . . 3 1 . . . . . . . . . . Samaritan 3 | . . . . . . . . . 3 . . . . . . . . . . Best Kill Streak 3 | 2 1 . . 3 . . 3 . . . . . 1 . 1 . . 3 . Combat Bots Only 3 | . . . . 3 . . 3 . . . . . 1 . 1 . . . . Max Kills in Single Turn 3 | 1 1 . . 3 . . 2 1 1 . . . 1 . 1 . . 1 . Gunslinging . | . . . . . . . . . . . . . . . . . . . . Exploded 3 | . . . . 3 . . 2 . . . . . 1 . . . . . . Melee 1 | . . . . . . . . . . . . . . . 1 . . . . Uniques/NPCs Destroyed . | . . . . . . . . . . . . . . . . . . . . Combat | -11 -10 -10 -9 -8 -7 -7 -6 -6 -6 -6 -5 -5 -5 -4 -4 -4 -3 -2 -2 -------- Run | Jun Mat Min Mat Mat Fac DSF Fac Low Low Zio Pro Fac DSF Fac Upp Upp Res Res Tes Damage Taken 7330 | . 153 . 105 76 . 244 937 . . . 41 . 627 109 504 . 2232 1310 992 Core 2989 | . 44 . 26 7 . . 215 . . . 13 . 96 41 179 . 916 678 774 Absorbed by Shields 341 | . . . . . . . . . . . . . 23 42 103 . 94 . 79 Redirected to Shielding 479 | . . . . . . . 298 . . . 25 . 98 14 44 . . . . Core Remaining (%) 82 | 100 . 82 93 98 . 100 . . . . 73 . 90 . . 80 29 . . Volleys Fired 16 | 6 . . . 2 . . 5 . . . . . 3 . . . . . . Largest 2 | 2 . . . 1 . . 1 . . . . . 1 . . . . . . Hottest 40 | 40 . . . 30 . . 36 . . . . . 39 . . . . . . Shots Fired 22 | 12 . . . 2 . . 5 . . . . . 3 . . . . . . Gun 12 | 12 . . . . . . . . . . . . . . . . . . . Cannon . | . . . . . . . . . . . . . . . . . . . . Launcher 10 | . . . . 2 . . 5 . . . . . 3 . . . . . . Special . | . . . . . . . . . . . . . . . . . . . . Kinetic 12 | 12 . . . . . . . . . . . . . . . . . . . Thermal . | . . . . . . . . . . . . . . . . . . . . Explosive 10 | . . . . 2 . . 5 . . . . . 3 . . . . . . Electromagnetic . | . . . . . . . . . . . . . . . . . . . . Robot Hit Streak 6 | 3 . . . 3 . . 6 . . . . . . . . . . . . Robot Miss Streak 1 | 1 . . . . . . 1 . . . . . . . . . . . . Penetration Max . | . . . . . . . . . . . . . . . . . . . . Secondary Targets . | . . . . . . . . . . . . . . . . . . . . Shots Hit Robots 37 | 8 1 . 1 7 . . 4 3 4 . . . . . 2 . . 7 . Core Hits 33 | 3 . . . 5 . . 6 . . . . . 13 . 1 . . 5 . Critical Kills 1 | . . . . 1 . . . . . . . . . . . . . . . Critical Parts Destroyed 5 | . 1 . . 3 . . . 1 . . . . . . . . . . . Critical Strikes 6 | . 1 . . 4 . . . 1 . . . . . . . . . . . Smash 6 | . 1 . . 4 . . . 1 . . . . . . . . . . . Melee Attacks 169 | . 15 5 3 10 . 3 13 3 4 . . 10 3 12 14 . 15 51 8 Impact 80 | . 15 5 3 10 . 3 13 3 4 . . 10 3 . . . 11 . . Slashing 32 | . . . . . . . . . . . . . . . . . . 32 . Piercing 57 | . . . . . . . . . . . . . . 12 14 . 4 19 8 Sneak Attacks 17 | . 1 . . 4 . . . 3 4 . . . . . . . . 5 . Combat Hostiles . | . . . . . . . . . . . . . . . . . . . . Follow-up Attacks . | . . . . . . . . . . . . . . . . . . . . Damage Inflicted 2723 | 99 69 . 31 484 . . 420 285 309 . . . 323 . 76 . . 627 . Guns 99 | 99 . . . . . . . . . . . . . . . . . . . Cannons . | . . . . . . . . . . . . . . . . . . . . Explosions 951 | . . . . 233 . . 395 . . . . . 323 . . . . . . Melee 1659 | . 55 . 31 251 . . 25 285 309 . . . . . 76 . . 627 . Ramming 14 | . 14 . . . . . . . . . . . . . . . . . . Kinetic 99 | 99 . . . . . . . . . . . . . . . . . . . Thermal . | . . . . . . . . . . . . . . . . . . . . Explosive 951 | . . . . 233 . . 395 . . . . . 323 . . . . . . Electromagnetic . | . . . . . . . . . . . . . . . . . . . . Impact 956 | . 55 . 31 251 . . 25 285 309 . . . . . . . . . . Slashing . | . . . . . . . . . . . . . . . . . . . . Piercing 703 | . . . . . . . . . . . . . . . 76 . . 627 . Highest Corruption 2 | . 1 1 . . . . . . . . 1 . . . 2 2 . . . Average Corruption 1 | . 1 1 . . . . . . . . 1 . . . 1 2 . . . Corruption Purged . | . . . . . . . . . . . . . . . . . . . . Corruption Blocked . | . . . . . . . . . . . . . . . . . . . . Effects 2 | . . 1 . . . . . . . . . . . . 1 . . . . Message Errors 2 | . . 1 . . . . . . . . . . . . 1 . . . . Overload Shots . | . . . . . . . . . . . . . . . . . . . . Overflow Damage 908 | . 55 . . 167 . . 117 273 243 . . . . . 27 . . 26 . Projectiles . | . . . . . . . . . . . . . . . . . . . . Explosions 138 | . . . . 21 . . 117 . . . . . . . . . . . . Melee 770 | . 55 . . 146 . . . 273 243 . . . . . 27 . . 26 . Knockbacks 1 | . . . . . . . . . 1 . . . . . . . . . . Impact 1 | . . . . . . . . . 1 . . . . . . . . . . Kinetic . | . . . . . . . . . . . . . . . . . . . . Secondary . | . . . . . . . . . . . . . . . . . . . . Self-Inflicted Damage 399 | . 14 . . . . . 319 . . . . . 66 . . . . . . Shots 6 | . . . . . . . 5 . . . . . 1 . . . . . . Rammed . | . . . . . . . . . . . . . . . . . . . . Targets Rammed . | . . . . . . . . . . . . . . . . . . . . Kicked . | . . . . . . . . . . . . . . . . . . . . Crushed . | . . . . . . . . . . . . . . . . . . . . Highest Temperature 267 | . . . . . . . . . . . 267 71 . . . . . . . Average Temperature 62 | . . . . . . . . . . . 138 23 . . . . . . . Received Heat Transfer 270 | . 72 . 27 . . . . . . . 9 . 42 6 . . 18 36 60 Siege Activations . | . . . . . . . . . . . . . . . . . . . . Robots Corrupted . | . . . . . . . . . . . . . . . . . . . . Combat Hostiles . | . . . . . . . . . . . . . . . . . . . . Parts Fried 7 | . 2 . . 2 . . . . 3 . . . . . . . . . . Impact Corruptions 35 | . 1 . . 5 . . . 15 14 . . . . . . . . . . Robots Melted . | . . . . . . . . . . . . . . . . . . . . Combat Hostiles . | . . . . . . . . . . . . . . . . . . . . Parts Melted . | . . . . . . . . . . . . . . . . . . . . Heat Transferred . | . . . . . . . . . . . . . . . . . . . . Parts Sabotaged . | . . . . . . . . . . . . . . . . . . . . Parts Stolen . | . . . . . . . . . . . . . . . . . . . . Parts Stripped . | . . . . . . . . . . . . . . . . . . . . Power Chain Reactions . | . . . . . . . . . . . . . . . . . . . . Missiles Intercepted . | . . . . . . . . . . . . . . . . . . . . Alert | -11 -10 -10 -9 -8 -7 -7 -6 -6 -6 -6 -5 -5 -5 -4 -4 -4 -3 -2 -2 ------- Run | Jun Mat Min Mat Mat Fac DSF Fac Low Low Zio Pro Fac DSF Fac Upp Upp Res Res Tes Peak Influence 800 | 10 274 108 132 348 158 115 589 . . . . 134 167 91 . . 314 800 572 Initial 414 | . 6 106 41 55 158 110 60 . . . . 56 95 45 . . 97 167 414 Average 198 | 2 94 106 68 136 158 112 229 . . . . 79 107 73 . . 153 431 463 Maximum Alert Level 3 | . 1 . . 1 . . 2 . . . . . . . . . 1 3 2 Low Security (%) 63 | 100 78 100 100 63 100 100 54 . . . . 100 100 100 . . 74 14 . Level 1 21 | . 21 . . 36 . . 23 . . . . . . . . . 25 45 . Level 2 11 | . . . . . . . 21 . . . . . . . . . . 20 100 Level 3 3 | . . . . . . . . . . . . . . . . . . 19 . Level 4 . | . . . . . . . . . . . . . . . . . . . . Level 5 . | . . . . . . . . . . . . . . . . . . . . High Security . | . . . . . . . . . . . . . . . . . . . . Max Security . | . . . . . . . . . . . . . . . . . . . . Squads Dispatched 14 | . 1 . . . . 1 4 . . . . 1 2 . . . 1 2 2 Investigation 3 | . . . . . . . 1 . . . . 1 . . . . . 1 . Extermination 1 | . . . . . . . . . . . . . . . . . . 1 . Reinforcement 10 | . 1 . . . . 1 3 . . . . . 2 . . . 1 . 2 Assault . | . . . . . . . . . . . . . . . . . . . . Garrison . | . . . . . . . . . . . . . . . . . . . . Intercept . | . . . . . . . . . . . . . . . . . . . . Searches Triggered 1 | . . . . . . . 1 . . . . . . . . . . . . Construction Impeded . | . . . . . . . . . . . . . . . . . . . . Haulers Reinforced . | . . . . . . . . . . . . . . . . . . . . Active Scanning Responses . | . . . . . . . . . . . . . . . . . . . . Cargo Convoy Interrupts . | . . . . . . . . . . . . . . . . . . . . Stealth | -11 -10 -10 -9 -8 -7 -7 -6 -6 -6 -6 -5 -5 -5 -4 -4 -4 -3 -2 -2 --------- Run | Jun Mat Min Mat Mat Fac DSF Fac Low Low Zio Pro Fac DSF Fac Upp Upp Res Res Tes Distress Signals 7 | . 3 . . 2 . . . . . . . . . . . . . 1 1 Communications Jammed . | . . . . . . . . . . . . . . . . . . . . Distress Signals . | . . . . . . . . . . . . . . . . . . . . Times Spotted 207 | . 16 . 11 16 . 4 23 3 . . 14 1 7 9 11 . 30 42 20 Peak Tracking Total 17 | . 9 . 10 8 . 3 7 3 . . 10 2 4 9 4 . 11 11 17 Tactical Retreats 38 | . 6 . 1 1 . 1 6 . . . 2 . 1 1 5 . 3 8 3 Traps | -11 -10 -10 -9 -8 -7 -7 -6 -6 -6 -6 -5 -5 -5 -4 -4 -4 -3 -2 -2 ------- Run | Jun Mat Min Mat Mat Fac DSF Fac Low Low Zio Pro Fac DSF Fac Upp Upp Res Res Tes Traps Triggered 10 | . . . . . . . 4 . . . . . 1 . . . 2 2 1 Indirectly . | . . . . . . . . . . . . . . . . . . . . Trap Hack Attempts . | . . . . . . . . . . . . . . . . . . . . Triggered . | . . . . . . . . . . . . . . . . . . . . Disarmed . | . . . . . . . . . . . . . . . . . . . . Reprogrammed . | . . . . . . . . . . . . . . . . . . . . Reused . | . . . . . . . . . . . . . . . . . . . . Traps Extracted . | . . . . . . . . . . . . . . . . . . . . Installed . | . . . . . . . . . . . . . . . . . . . . Triggered . | . . . . . . . . . . . . . . . . . . . . Machines | -11 -10 -10 -9 -8 -7 -7 -6 -6 -6 -6 -5 -5 -5 -4 -4 -4 -3 -2 -2 ---------- Run | Jun Mat Min Mat Mat Fac DSF Fac Low Low Zio Pro Fac DSF Fac Upp Upp Res Res Tes Machines Disabled 7 | . . . . 2 . . 4 . . . . . . . 1 . . . . Max in Single Turn 4 | . . . . 1 . . 4 . . . . . . . 1 . . . . Machines Repaired . | . . . . . . . . . . . . . . . . . . . . Machines Sabotaged . | . . . . . . . . . . . . . . . . . . . . Overloaded Fab Kills . | . . . . . . . . . . . . . . . . . . . . Hacking | -11 -10 -10 -9 -8 -7 -7 -6 -6 -6 -6 -5 -5 -5 -4 -4 -4 -3 -2 -2 --------- Run | Jun Mat Min Mat Mat Fac DSF Fac Low Low Zio Pro Fac DSF Fac Upp Upp Res Res Tes Machines Accessed 22 | . 1 . 1 4 1 . 5 1 . . . 3 . 2 1 . . 3 . Terminals 20 | . 1 . 1 4 1 . 5 . . . . 3 . 2 . . . 3 . Fabricators . | . . . . . . . . . . . . . . . . . . . . Repair Stations . | . . . . . . . . . . . . . . . . . . . . Recycling Units . | . . . . . . . . . . . . . . . . . . . . Scanalyzers . | . . . . . . . . . . . . . . . . . . . . Garrison Access . | . . . . . . . . . . . . . . . . . . . . Total Hacks 45 | . 1 . 3 8 2 . 9 1 . . . 7 . 8 1 . . 5 . Successful 18 | . . . 2 1 1 . 2 1 . . . 3 . 3 1 . . 4 . Failed 27 | . 1 . 1 7 1 . 7 . . . . 4 . 5 . . . 1 . Catastrophic 2 | . 1 . . 1 . . . . . . . . . . . . . . . Database Lockouts . | . . . . . . . . . . . . . . . . . . . . Manual 32 | . 1 . 3 8 . . 5 . . . . 6 . 7 . . . 2 . Terminals 43 | . 1 . 3 8 2 . 9 . . . . 7 . 8 . . . 5 . Fabricators . | . . . . . . . . . . . . . . . . . . . . Repair Stations . | . . . . . . . . . . . . . . . . . . . . Recycling Units . | . . . . . . . . . . . . . . . . . . . . Scanalyzers . | . . . . . . . . . . . . . . . . . . . . Garrison Access . | . . . . . . . . . . . . . . . . . . . . Terminal Hacks 11 | . . . 1 . 1 . 2 1 . . . 1 . 1 1 . . 3 . Record 2 | . . . . . . . . . . . . . . . 1 . . 1 . Open Door 1 | . . . . . . . . 1 . . . . . . . . . . . Open DSF 6 | . . . . . 1 . 2 . . . . 1 . . . . . 2 . Level Access Points 1 | . . . 1 . . . . . . . . . . . . . . . . Locate Traps 1 | . . . . . . . . . . . . . . 1 . . . . . Fabricator Hacks . | . . . . . . . . . . . . . . . . . . . . Repair Station Hacks . | . . . . . . . . . . . . . . . . . . . . Recycling Unit Hacks . | . . . . . . . . . . . . . . . . . . . . Scanalyzer . | . . . . . . . . . . . . . . . . . . . . Garrison Access Hacks . | . . . . . . . . . . . . . . . . . . . . Unauthorized Hacks 7 | . . . 1 1 . . . . . . . 2 . 2 . . . 1 . Terminals 7 | . . . 1 1 . . . . . . . 2 . 2 . . . 1 . Botnet 7 | . . . 1 1 . . . . . . . 2 . 2 . . . 1 . Fabricators . | . . . . . . . . . . . . . . . . . . . . Repair Stations . | . . . . . . . . . . . . . . . . . . . . Recycling Units . | . . . . . . . . . . . . . . . . . . . . Scanalyzers . | . . . . . . . . . . . . . . . . . . . . Garrison Access . | . . . . . . . . . . . . . . . . . . . . Data Cores Recovered . | . . . . . . . . . . . . . . . . . . . . Used . | . . . . . . . . . . . . . . . . . . . . Hacking Detections 12 | . 1 . 1 4 . . 2 . . . . 1 . 2 . . . 1 . Full Trace Events 2 | . . . . . . . . . . . . 1 . . . . . 1 . Feedback Events . | . . . . . . . . . . . . . . . . . . . . Feedback Blocked . | . . . . . . . . . . . . . . . . . . . . Robot Schematics Acquired . | . . . . . . . . . . . . . . . . . . . . Robots Built . | . . . . . . . . . . . . . . . . . . . . Authchips . | . . . . . . . . . . . . . . . . . . . . Time . | . . . . . . . . . . . . . . . . . . . . Total Robot Build Rating . | . . . . . . . . . . . . . . . . . . . . Part Schematics Acquired . | . . . . . . . . . . . . . . . . . . . . Parts Built . | . . . . . . . . . . . . . . . . . . . . Authchips . | . . . . . . . . . . . . . . . . . . . . Time . | . . . . . . . . . . . . . . . . . . . . Total Part Build Rating . | . . . . . . . . . . . . . . . . . . . . Parts Repaired . | . . . . . . . . . . . . . . . . . . . . Time . | . . . . . . . . . . . . . . . . . . . . Parts Recycled . | . . . . . . . . . . . . . . . . . . . . Recycled Matter . | . . . . . . . . . . . . . . . . . . . . Retrieved Matter . | . . . . . . . . . . . . . . . . . . . . Retrieved Components . | . . . . . . . . . . . . . . . . . . . . Parts Scanalyzed . | . . . . . . . . . . . . . . . . . . . . Part Schematics Acquired . | . . . . . . . . . . . . . . . . . . . . Parts Damaged . | . . . . . . . . . . . . . . . . . . . . Bothacking | -11 -10 -10 -9 -8 -7 -7 -6 -6 -6 -6 -5 -5 -5 -4 -4 -4 -3 -2 -2 ------------ Run | Jun Mat Min Mat Mat Fac DSF Fac Low Low Zio Pro Fac DSF Fac Upp Upp Res Res Tes Used RIF Installer . | . . . . . . . . . . . . . . . . . . . . Robots Hacked . | . . . . . . . . . . . . . . . . . . . . Non-combat . | . . . . . . . . . . . . . . . . . . . . Combat . | . . . . . . . . . . . . . . . . . . . . Robot Hacks Applied . | . . . . . . . . . . . . . . . . . . . . Relay Couplers Released . | . . . . . . . . . . . . . . . . . . . . Fabnet Peak Effective % . | . . . . . . . . . . . . . . . . . . . . Robots Rewired . | . . . . . . . . . . . . . . . . . . . . Allies Hacked . | . . . . . . . . . . . . . . . . . . . . Hacks Repelled . | . . . . . . . . . . . . . . . . . . . . Allies | -11 -10 -10 -9 -8 -7 -7 -6 -6 -6 -6 -5 -5 -5 -4 -4 -4 -3 -2 -2 -------- Run | Jun Mat Min Mat Mat Fac DSF Fac Low Low Zio Pro Fac DSF Fac Upp Upp Res Res Tes Total Allies 1 | . . 1 . . . . . . . . . . . . . . . . . Largest Group 1 | . . 1 1 . . . . . . . . . . . . . . . . Highest-Rated Group 31 | . . 31 31 . . . . . . . . . . . . . . . . Highest-Rated Ally 31 | . . 31 31 . . . . . . . . . . . . . . . . Total Orders 1 | . . . . . . . 1 . . . . . . . . . . . . EXPLORE 1 | . . . . . . . 1 . . . . . . . . . . . . Ally Attacks 3 | . . . 3 . . . . . . . . . . . . . . . . Total Damage 42 | . . . 42 . . . . . . . . . . . . . . . . Kills 1 | . . . 1 . . . . . . . . . . . . . . . . Allies Corrupted . | . . . . . . . . . . . . . . . . . . . . Allies Melted . | . . . . . . . . . . . . . . . . . . . . Intel | -11 -10 -10 -9 -8 -7 -7 -6 -6 -6 -6 -5 -5 -5 -4 -4 -4 -3 -2 -2 ------- Run | Jun Mat Min Mat Mat Fac DSF Fac Low Low Zio Pro Fac DSF Fac Upp Upp Res Res Tes Robot Analysis Total . | . . . . . . . . . . . . . . . . . . . . Derelict Logs Recovered 4 | . . 1 . . . . . . 1 . 1 . . . 1 . . . . Drone Launches 2 | . . . . . . . 2 . . . . . . . . . . . . Drone Recoveries . | . . . . . . . . . . . . . . . . . . . . Exploration | -11 -10 -10 -9 -8 -7 -7 -6 -6 -6 -6 -5 -5 -5 -4 -4 -4 -3 -2 -2 ------------- Run | Jun Mat Min Mat Mat Fac DSF Fac Low Low Zio Pro Fac DSF Fac Upp Upp Res Res Tes Turns Passed 3108 | 64 340 113 128 347 72 45 451 64 129 17 75 107 79 89 216 14 216 435 107 Spaces Moved 6094 | 55 478 163 195 508 174 93 779 265 554 78 338 373 138 171 394 31 312 775 220 Core 175 | 50 27 . . . . . . . . . . . . . . . 55 . 43 Treads 3 | 3 . . . . . . . . . . . . . . . . . . . Legs 28 | . . . . . . . 28 . . . . . . . . . . . . Wheels 6 | 2 . . . . . . . . . . . . . . . . . 4 . Hover . | . . . . . . . . . . . . . . . . . . . . Flight 5882 | . 451 163 195 508 174 93 751 265 554 78 338 373 138 171 394 31 257 771 177 Fastest Speed 20 | 50 50 60 60 38 38 38 21 21 21 21 21 21 21 27 33 45 39 20 20 Average Speed 38 | 57 59 60 60 58 38 38 42 21 21 21 21 21 26 28 38 45 45 33 30 Slowest Speed 180 | 160 60 60 60 74 38 38 180 21 21 21 21 21 110 33 125 45 100 122 120 Overloaded Moves . | . . . . . . . . . . . . . . . . . . . . Propulsion Burnouts . | . . . . . . . . . . . . . . . . . . . . Robots Hopped 43 | . 7 7 1 1 . . 7 . . . . 4 . 1 3 . 2 5 5 Cave-ins Triggered 1 | . . . . . . . 1 . . . . . . . . . . . . Exploration Rate (%) 37 | 2 75 34 24 42 7 89 41 48 68 10 56 16 89 8 59 11 12 27 35 Regions Visited 19 Branch Regions 8 Pre-discovered Areas 1 | . . . . . . . . . . . . . . . 1 . . . . Known Exits Taken 3 | . . . 1 . 1 . . . . . . 1 . . . . . . . Unknown Exits Taken 14 | 1 1 1 . 1 . . 1 1 1 1 1 . . 1 1 1 1 1 . Scrap Searched 7 | . . . . . . . . . 3 . 1 . . . 2 1 . . . Spaces Dug 142 | . 9 5 1 1 . . 22 . . . . 9 14 12 7 . 10 44 8 Terrain Destroyed 243 | . 9 5 1 20 . . 92 . . . . 9 26 12 7 . 10 44 8 Melee 117 | . 9 5 1 1 . . 9 . . . . 9 2 12 7 . 10 44 8 Projectile . | . . . . . . . . . . . . . . . . . . . . AOE 126 | . . . . 19 . . 83 . . . . . 24 . . . . . . Terrain Rammed 1 | . 1 . . . . . . . . . . . . . . . . . . Walls Destroyed . | . . . . . . . . . . . . . . . . . . . . Machines Disabled . | . . . . . . . . . . . . . . . . . . . . Actions | -11 -10 -10 -9 -8 -7 -7 -6 -6 -6 -6 -5 -5 -5 -4 -4 -4 -3 -2 -2 --------- Run | Jun Mat Min Mat Mat Fac DSF Fac Low Low Zio Pro Fac DSF Fac Upp Upp Res Res Tes Total 6501 | 75 501 162 200 539 179 96 861 267 558 77 341 379 169 186 426 30 357 860 238 Wait 33 | . 5 2 . . 2 . 2 . . . 1 . . . 19 . . . 2 Move 5991 | 54 463 148 192 505 173 92 764 264 553 77 337 364 137 168 388 30 307 764 211 Hop 41 | . 7 7 1 1 . . 7 . . . . 4 . 1 2 . 2 5 4 Pick Up 33 | 2 3 . 2 4 1 . 4 . 1 . 1 1 5 1 . . 4 3 1 Fast Attach 58 | 7 2 . . 8 . . 9 . . . . . 10 . 1 . 7 11 3 Attach 38 | . 1 . . 3 2 1 11 . . . 1 . 3 3 . . 6 5 2 Detach 29 | 3 2 . . 1 . . 10 . . . 1 . 1 1 1 . 1 6 2 Swap 2 | . . . . . . . 1 . . . . . . . . . 1 . . Drop 32 | 3 2 . 2 5 1 . 4 . . . . . 6 . 1 . 3 5 . Fire 16 | 6 . . . 2 . . 5 . . . . . 3 . . . . . . Melee 169 | . 15 5 3 10 . 3 13 3 4 . . 10 3 12 14 . 15 51 8 Ram 1 | . 1 . . . . . . . . . . . . . . . . . . Kick . | . . . . . . . . . . . . . . . . . . . . Crush . | . . . . . . . . . . . . . . . . . . . . Escape Stasis 58 | . . . . . . . 31 . . . . . 1 . . . 11 10 5 Rewire . | . . . . . . . . . . . . . . . . . . . . Trap . | . . . . . . . . . . . . . . . . . . . . Miscellaneous . | . . . . . . . . . . . . . . . . . . . . Route ------- -11/Junkyard -10/Materials (discovered 3 exits: *Mat x2 / [*Min]) -10/Mines (discovered 2 exits: *Mat x2) -9/Materials (discovered 3 exits: *Mat x3) -8/Materials -7/Factory -7/DSF -6/Factory -6/Lower Caves -6/Lower Caves (discovered 2 exits: *Fac / [*Zio]) -6/Zion -5/Proximity Caves -5/Factory (discovered 2 exits: Upp / DSF) -5/DSF -4/Factory -4/Upper Caves -4/Upper Caves -3/Research -2/Research -2/Testing History --------- Turn | Location | Event 11 | -11/Junkyard | Discovered new exit (range 15) 65 | -11/Junkyard | Entered Materials 150 | -10/Materials | Discovered new exit (range 11) 177 | -10/Materials | Discovered new exit (range 12) 271 | -10/Materials | Discovered new exit (range 3) 318 | -10/Materials | Build established: Mutant 405 | -10/Materials | Entered Mines 410 | -10/Mines | YI-UF0 nonchalantly dropped a Grenade Launcher on the ground 416 | -10/Mines | Discovered new exit (range 7) 443 | -10/Mines | Assembled infested the area 446 | -10/Mines | Learned Materials terminal intel 451 | -10/Mines | Received a Mining Laser from a helpful Derelict 482 | -10/Mines | Met 8R-AWN 488 | -10/Mines | Discovered new exit (range 5) 518 | -10/Mines | Entered Materials 518 | -9/Materials | Accompanied by 1 ally 518 | -9/Materials | Evolved 2 slots: Propulsion x2 519 | -9/Materials | Loaded intel: 9 terminal locations 523 | -9/Materials | Identified exit to Materials 646 | -9/Materials | Entered another Materials area 646 | -8/Materials | Evolved 2 slots: Propulsion x1, Utility x1 884 | -8/Materials | Discovered new exit (range 15) 993 | -8/Materials | Entered Factory 993 | -7/Factory | Evolved 2 slots: Utility x2 1064 | -7/Factory | Identified exit to DSF 1065 | -7/Factory | Entered DSF 1091 | -7/DSF | Additional patrols routed to DSF 1103 | -7/DSF | Discovered new exit (range 14) 1110 | -7/DSF | Entered Factory 1110 | -6/Factory | Evolved 2 slots: Propulsion x1, Utility x1 1392 | -6/Factory | Crushed by falling debris 1446 | -6/Factory | Lost 5 parts (1p1n2u1w) 1460 | -6/Factory | Search patrols dispatched 1487 | -6/Factory | Spotted B-75 Beast 1550 | -6/Factory | Discovered new exit (range 12) 1561 | -6/Factory | Entered Lower Caves 1612 | -6/Lower Caves | Discovered new exit (range 8) 1625 | -6/Lower Caves | Entered another Lower Caves area 1632 | -6/Lower Caves | Discovered new exit (range 12) 1716 | -6/Lower Caves | Discovered new exit (range 10) 1754 | -6/Lower Caves | Entered Zion 1768 | -6/Zion | Discovered new exit (range 13) 1771 | -6/Zion | Entered Proximity Caves 1776 | -5/Proximity Caves | Learned 8 Factory zone layouts 1826 | -5/Proximity Caves | Spotted B-75 Beast 1841 | -5/Proximity Caves | Discovered new exit (range 20) 1846 | -5/Proximity Caves | Entered Factory 1846 | -5/Factory | Evolved 2 slots: Power x1, Propulsion x1 1847 | -5/Factory | Identified exit to Upper Caves 1864 | -5/Factory | Build established: Sprinter 1953 | -5/Factory | Identified exit to DSF 1953 | -5/Factory | Entered DSF 1968 | -5/DSF | Additional patrols routed to DSF 1999 | -5/DSF | Discovered new exit (range 14) 2032 | -5/DSF | Entered Factory 2032 | -4/Factory | Evolved 2 slots: Propulsion x1, Utility x1 2049 | -4/Factory | Lost 10 parts (1p6n2u1w) 2120 | -4/Factory | Discovered new exit (range 5) 2121 | -4/Factory | Entered Upper Caves 2280 | -4/Upper Caves | Found Alien Artifact 2280 | -4/Upper Caves | Identified Dimensional Node Initializer 2280 | -4/Upper Caves | Initialized slip node 2301 | -4/Upper Caves | Lost 5 parts (1p3n1u) 2331 | -4/Upper Caves | Discovered new exit (range 14) 2337 | -4/Upper Caves | Entered another Upper Caves area 2347 | -4/Upper Caves | Discovered new exit (range 9) 2351 | -4/Upper Caves | Entered Research 2351 | -3/Research | Evolved 2 slots: Propulsion x1, Utility x1 2528 | -3/Research | Core integrity fell below 50% 2529 | -3/Research | Lost 4 parts (1n3u) 2556 | -3/Research | Found Enh. Force Lance 2564 | -3/Research | Discovered new exit (range 8) 2567 | -3/Research | Entered another Research area 2567 | -2/Research | Evolved 2 slots: Utility x2 2592 | -2/Research | Lost 5 parts (1p1n2u1w) 2844 | -2/Research | Lost 6 parts (4n2u) 2851 | -2/Research | Spotted B-90 Cyclops 2868 | -2/Research | Found Prototype Reactor 2868 | -2/Research | Identified Zero-point Reactor 2980 | -2/Research | Found Prototype Processor 2980 | -2/Research | Identified Exp. Core Analyzer 2982 | -2/Research | Found Exp. Core Analyzer 2989 | -2/Research | Discovered new exit (range 9) 3002 | -2/Research | Entered Testing 3021 | -2/Testing | Scanned by Researcher 3039 | -2/Testing | Spotted PP-QSE1XV7LPG 3072 | -2/Testing | Core integrity fell below 50% 3099 | -2/Testing | Core integrity fell below 20% 3109 | -2/Testing | Destroyed by G-73 Enforcer with Phase Gun Last Messages --------------- 03085_ Slug penetrates K-01 Serf. 03087_ K-01 Serf suffers critical hit (Destroy). 03088_ Penetrated by Slug. 03088_ Slug penetrates H-88 Terminator. 03088_ H-88 Terminator suffers critical hit (Destroy). 03090_ ALERT: Hostiles spotted, dispatching reinforcements to Terminal T001. 03090_ Slug penetrates Wall. 03098_ >> Machine Analyzer network decryption results: 03098_ Terminal x1 03100_ >> Machine Analyzer network decryption results: 03100_ Scanalyzer x1 03104_ Imp. Hacking Suite destroyed. 03105_ Triggered Stasis Trap. 03105_ A bubble of rippling energy engulfs the area. 03105_ Field strength at 94. 03106_ Field strength at 69. 03107_ Field strength at 56. 03108_ Field strength at 21. 03108_ Stasis field depleted. Map ----- +----------------------------------------------------+ | ?????????????????????????????????????????????????? | | ?????????????????????????????????????????????????? | | ?????????????????????????????????????????????????? | | ?????????????????????????????????????????????????? | | ?????????????????????????????????????????????????? | | ?????????????????????????????????????????????????? | | ?????????????????????????????????????????????????? | | ?????????????????????????????????????????????????? | | ?????????????????????????????????????????????????? | | ?????????????????????????????????????????????????? | | ????????????????????????? ?????????????????????? | | ????????????????????????? ???????????????????? | | ????????????????????????? ???????????????????? | | ????????????????????????? u#???????????????????? | | ????????????????????????# gg#???????????????????? | | ????????????????????????# k #???????????????????? | | ????????????????????????# #???????????????????? | | ????????????????????????# gg #???????????????????? | | ????????????????????????# #???????????????????? | | ????????????????????????# #???????????????????? | | ????????????????????????# #?"""?""????????????? | | ?????????????????""?"""?# #?"""?""????????????? | | ?????????????????""?"""?# #?"""?""????????????? | | ?????????????????""?"""?+ +??????S????????????? | | ?????????????????T??"""?# #?"""?""????????????? | | ?????????????????""?"""?#@ #?"""?""????????????? | | ?????????????????""?????# ^ #?"""?""????????????? | | ?????????????????""?????# #???????????????????? | | ????????????????????????# #???????????????????? | | ????????????????????????# #???????????????????? | | ????????????????????????# #???????????????????? | | ????????????????????????# #???????????????????? | | ????????????????????????# #???????????????????? | | ?????????????????? ###### #?#########?????????? | | ?????????????????# """" #? #?????????? | | ?????????????????# "F " # #?????????? | | ?????????????????# # #?????????? | | ?????????????? ## + #?????????? | | ????????????? / # "" "" #?????????? | | ??????????? ## # ""S""???????????? | | ??????????????# #? """"????????????? | | ??????????????###"" ""### #? ????????????? | | ????????????????#""T""??# #??######???????????? | | ????????????????# """ ??# #???????????????????? | | ????????????????###?????# #???????????????????? | | ????????????????????????# #???????????????????? | | ????????????????????????# #???????????????????? | | # #????????????????????????# #???????????????????? | | # #???????????????######?### ##??????????????????? | | # #???????????????? ?# #??????????????????? | +----------------------------------------------------+ Best States ------------- Heat Dissipation 57 Coolant Potential 100 Energy Generation 33 Energy Capacity 240 Matter Stores 300 Matter Capacity 300 Sight Range 22 Terrain Scan Density 85 Cloak Strength 2 Armor Coverage 300 Resistance: TH 25 Core Shielding 30 Propulsion Shielding 90 Utility Shielding 33 Evasion (%) 66 Core Analysis 8 Recoil Reduction 1 Offensive Hacking 20 Item Schematics ----------------- None Robot Schematics ------------------ None Fabricated ------------ Nothing Alien Tech Used ----------------- Dimensional Node Initializer Achievements -------------- Can't Catch Me Challenges ------------ None Game ------ Seed EncryptedRagnarokRay Manual? 0 Play Time 01:48:09 Cumulative 33.6 hours Start 2023.03.11 @ 15:46:45 End 2023.03.11 @ 19:54:56 Sessions 1 Manual Loads 0 Difficulty Rogue Special Mode None Game No. 29 Rogue 29 Adventurer 0 Explorer 0 Win Type - Total 0 Types 0/0/0/0/0/0/0/0/0 Lore% 21 Gallery% 37 Achievement% 31 Wizard Run 0 Options --------- ASCII 0 Keyboard 1 Movement Vi Keybinds 0 Fullscreen 2 Font 18/SmallcapsGlow Map View 76x50 Tactical HUD 1 Map Filters NONE Filters NONE Steam 1 RUN: 847e7c1f-c30a-4af0-82af-b7e7ace0b19d